[Event "Late-Titled-Tuesday-Blitz-April-30-2024"]
[Site "Chess.com"]
[Date "2024.04.30"]
[Round "1"]
[White "PapaieDudu"]
[Black "IMRosen"]
[Result "0-1"]
[WhiteElo "2394"]
[BlackElo "2689"]
[TimeControl "180+1"]
[EndTime "14:07:47 PDT"]
[Termination "IMRosen won by checkmate"]

1. Nf3 {[%clk 0:03:00.9]} 1... Nf6 {[%clk 0:02:59]} 2. d4 {[%clk 0:03:01.4]}
2... d5 {[%clk 0:02:59.5]} 3. c4 {[%clk 0:03:01.9]} 3... e6 {[%clk 0:03:00]} 4.
Nc3 {[%clk 0:03:02.5]} 4... Nbd7 {[%clk 0:03:00.7]} 5. Bg5 {[%clk 0:03:03.1]}
5... c6 {[%clk 0:03:00.6]} 6. e3 {[%clk 0:03:03.6]} 6... Qa5 {[%clk 0:03:01]} 7.
Nd2 {[%clk 0:03:04.2]} 7... Bb4 {[%clk 0:03:00.4]} 8. Rc1 {[%clk 0:03:02.3]}
8... Ne4 {[%clk 0:02:57.3]} 9. Ndxe4 {[%clk 0:02:59.4]} 9... dxe4 {[%clk
0:02:57.4]} 10. Bh4 {[%clk 0:03:00.1]} 10... Qxa2 {[%clk 0:02:50.1]} 11. Qc2
{[%clk 0:02:54.3]} 11... Nb6 {[%clk 0:02:43.4]} 12. Be2 {[%clk 0:02:46.2]} 12...
Na4 {[%clk 0:02:43.6]} 13. O-O {[%clk 0:02:40.1]} 13... Nxc3 {[%clk 0:02:33.2]}
14. Ra1 {[%clk 0:02:17.3]} 14... Nxe2+ {[%clk 0:02:31.4]} 15. Kh1 {[%clk
0:02:11.9]} 15... Qxa1 {[%clk 0:02:05.1]} 16. Rxa1 {[%clk 0:02:12.8]} 16... Nxd4
{[%clk 0:02:05.7]} 17. exd4 {[%clk 0:02:12.3]} 17... f5 {[%clk 0:02:05.9]} 18.
d5 {[%clk 0:01:21.7]} 18... O-O {[%clk 0:01:48.7]} 19. dxc6 {[%clk 0:01:17.4]}
19... bxc6 {[%clk 0:01:47.5]} 20. Qa4 {[%clk 0:01:14.5]} 20... a5 {[%clk
0:01:21.1]} 21. Qxc6 {[%clk 0:01:13.4]} 21... Ra6 {[%clk 0:01:16.2]} 22. Qb5
{[%clk 0:01:06.6]} 22... h6 {[%clk 0:01:03.7]} 23. Bg3 {[%clk 0:00:55.8]} 23...
f4 {[%clk 0:00:55.8]} 24. Bh4 {[%clk 0:00:47.6]} 24... g5 {[%clk 0:00:33]} 25.
Bxg5 {[%clk 0:00:45.6]} 25... hxg5 {[%clk 0:00:33.9]} 26. Qxg5+ {[%clk
0:00:44.1]} 26... Kh7 {[%clk 0:00:34.3]} 27. Qh5+ {[%clk 0:00:34.6]} 27... Kg7
{[%clk 0:00:34.3]} 28. Qg5+ {[%clk 0:00:33.6]} 28... Kh7 {[%clk 0:00:34.8]} 29.
Ra4 {[%clk 0:00:12.5]} 29... Rd6 {[%clk 0:00:22.8]} 30. h3 {[%clk 0:00:12.1]}
30... Rd7 {[%clk 0:00:17.8]} 31. c5 {[%clk 0:00:09.9]} 31... Rg7 {[%clk
0:00:15.2]} 32. Qh5+ {[%clk 0:00:09.5]} 32... Kg8 {[%clk 0:00:15.8]} 33. Kh2
{[%clk 0:00:08.6]} 33... Bb7 {[%clk 0:00:12.8]} 34. Qe5 {[%clk 0:00:06.8]} 34...
Bd5 {[%clk 0:00:13]} 35. c6 {[%clk 0:00:04.6]} 35... Rc8 {[%clk 0:00:11.1]} 36.
Ra2 {[%clk 0:00:01]} 36... Rxc6 {[%clk 0:00:10.4]} 37. Ra1 {[%clk 0:00:01.2]}
37... Bd6 {[%clk 0:00:10]} 38. Qd4 {[%clk 0:00:01.2]} 38... Rc8 {[%clk
0:00:06.8]} 39. Rd1 {[%clk 0:00:01.7]} 39... Rf8 {[%clk 0:00:06.9]} 40. Kh1
{[%clk 0:00:01.5]} 40... e3 {[%clk 0:00:05.9]} 41. fxe3 {[%clk 0:00:01.5]} 41...
Bxg2+ {[%clk 0:00:05.4]} 42. Kg1 {[%clk 0:00:01.9]} 42... f3 {[%clk 0:00:05.1]}
43. Kf2 {[%clk 0:00:02]} 43... Bg3+ {[%clk 0:00:04.9]} 44. Kg1 {[%clk
0:00:02.4]} 44... Bxh3 {[%clk 0:00:05.1]} 45. Kh1 {[%clk 0:00:02.1]} 45... f2
{[%clk 0:00:05.4]} 46. Qe4 {[%clk 0:00:01.2]} 46... f1=Q+ {[%clk 0:00:05.9]} 47.
Rxf1 {[%clk 0:00:01.4]} 47... Rxf1# {[%clk 0:00:06.8]} 0-1

[Event "Late-Titled-Tuesday-Blitz-April-30-2024"]
[Site "Chess.com"]
[Date "2024.04.30"]
[Round "1"]
[White "Fantastic_Power"]
[Black "conformalfunction"]
[Result "0-1"]
[WhiteElo "2669"]
[BlackElo "2421"]
[TimeControl "180+1"]
[EndTime "14:07:47 PDT"]
[Termination "conformalfunction won on time"]

1. e4 {[%clk 0:03:00.9]} 1... e6 {[%clk 0:02:56.2]} 2. d4 {[%clk 0:02:57.4]}
2... d5 {[%clk 0:02:53.9]} 3. Nc3 {[%clk 0:02:58.3]} 3... Nf6 {[%clk 0:02:50.5]}
4. Bg5 {[%clk 0:02:57.2]} 4... Bb4 {[%clk 0:02:50]} 5. e5 {[%clk 0:02:56.7]}
5... h6 {[%clk 0:02:44.8]} 6. Bd2 {[%clk 0:02:56.8]} 6... Bxc3 {[%clk
0:02:43.2]} 7. bxc3 {[%clk 0:02:57]} 7... Ne4 {[%clk 0:02:43.8]} 8. Bc1 {[%clk
0:02:57.6]} 8... c5 {[%clk 0:02:35.9]} 9. Qg4 {[%clk 0:02:56.8]} 9... Kf8 {[%clk
0:02:32.4]} 10. Bd3 {[%clk 0:02:53.7]} 10... cxd4 {[%clk 0:02:25.3]} 11. Ne2
{[%clk 0:02:31.6]} 11... dxc3 {[%clk 0:02:20.1]} 12. O-O {[%clk 0:02:25.9]}
12... Nc6 {[%clk 0:02:16.6]} 13. Bxe4 {[%clk 0:02:05.9]} 13... dxe4 {[%clk
0:02:17.5]} 14. Qg3 {[%clk 0:02:04.4]} 14... Qd5 {[%clk 0:02:12.3]} 15. Ba3+
{[%clk 0:02:03.4]} 15... Kg8 {[%clk 0:02:07.5]} 16. Bd6 {[%clk 0:02:02.2]} 16...
b6 {[%clk 0:02:03.3]} 17. Nxc3 {[%clk 0:02:00.9]} 17... Qc4 {[%clk 0:01:59.5]}
18. Rfe1 {[%clk 0:01:51.3]} 18... Bb7 {[%clk 0:01:54.4]} 19. Rxe4 {[%clk
0:01:50.2]} 19... Nd4 {[%clk 0:01:51.2]} 20. Rg4 {[%clk 0:01:50.7]} 20... g5
{[%clk 0:01:44.8]} 21. Re1 {[%clk 0:01:06.1]} 21... Rc8 {[%clk 0:01:40.2]} 22.
Re3 {[%clk 0:00:57.2]} 22... Rh7 {[%clk 0:01:04.4]} 23. h4 {[%clk 0:00:47.6]}
23... Rg7 {[%clk 0:01:00.3]} 24. Kh2 {[%clk 0:00:41.6]} 24... Kh8 {[%clk
0:00:48.2]} 25. hxg5 {[%clk 0:00:34.3]} 25... hxg5 {[%clk 0:00:49.1]} 26. Kg1
{[%clk 0:00:09]} 26... Qxc3 {[%clk 0:00:33]} 27. Rxc3 {[%clk 0:00:05.6]} 27...
Ne2+ {[%clk 0:00:33.5]} 28. Kh2 {[%clk 0:00:04.1]} 28... Rxc3 {[%clk 0:00:31]}
29. Qxc3 {[%clk 0:00:02.5]} 29... Nxc3 {[%clk 0:00:31.2]} 30. Rc4 {[%clk
0:00:03.3]} 30... Nd5 {[%clk 0:00:28.5]} 31. Rd4 {[%clk 0:00:01.5]} 31... b5
{[%clk 0:00:22.3]} 32. Kg3 {[%clk 0:00:02]} 32... Rg8 {[%clk 0:00:21.5]} 33. a4
{[%clk 0:00:02.4]} 33... a6 {[%clk 0:00:21.1]} 34. axb5 {[%clk 0:00:02.3]} 34...
axb5 {[%clk 0:00:22]} 35. c4 {[%clk 0:00:02.9]} 35... bxc4 {[%clk 0:00:21.3]}
36. Rxc4 {[%clk 0:00:03.8]} 36... Ba6 {[%clk 0:00:17.8]} 37. Rg4 {[%clk
0:00:03]} 37... Bd3 {[%clk 0:00:17.2]} 38. Rd4 {[%clk 0:00:02.8]} 38... Bf5
{[%clk 0:00:17.6]} 39. f3 {[%clk 0:00:03.1]} 39... g4 {[%clk 0:00:16.4]} 40.
fxg4 {[%clk 0:00:02.3]} 40... Ne3 {[%clk 0:00:13.9]} 41. Kf3 {[%clk 0:00:01.3]}
41... Nxg4 {[%clk 0:00:13.4]} 42. Rf4 {[%clk 0:00:01.8]} 42... Nh6 {[%clk
0:00:12.7]} 43. Rh4 {[%clk 0:00:01.8]} 43... Kh7 {[%clk 0:00:11.7]} 0-1

[Event "Late-Titled-Tuesday-Blitz-April-30-2024"]
[Site "Chess.com"]
[Date "2024.04.30"]
[Round "1"]
[White "Mihajlovskij"]
[Black "guillembaches"]
[Result "0-1"]
[WhiteElo "2218"]
[BlackElo "2586"]
[TimeControl "180+1"]
[EndTime "14:07:55 PDT"]
[Termination "guillembaches won by resignation"]

1. e4 {[%clk 0:02:50]} 1... c5 {[%clk 0:03:00.1]} 2. Nf3 {[%clk 0:02:49.5]} 2...
d6 {[%clk 0:03:00.7]} 3. d4 {[%clk 0:02:44.6]} 3... cxd4 {[%clk 0:03:01.6]} 4.
Qxd4 {[%clk 0:02:45.5]} 4... Nf6 {[%clk 0:03:00.7]} 5. Bb5+ {[%clk 0:02:42.2]}
5... Nc6 {[%clk 0:02:57.5]} 6. Qd3 {[%clk 0:02:41.1]} 6... g6 {[%clk 0:02:54.5]}
7. c4 {[%clk 0:02:40.7]} 7... Bg7 {[%clk 0:02:54.2]} 8. Nc3 {[%clk 0:02:39.7]}
8... O-O {[%clk 0:02:54.2]} 9. h3 {[%clk 0:02:38.8]} 9... Bd7 {[%clk 0:02:52.1]}
10. O-O {[%clk 0:02:39.2]} 10... a6 {[%clk 0:02:52.4]} 11. Bxc6 {[%clk
0:02:39.7]} 11... Bxc6 {[%clk 0:02:53]} 12. Nd4 {[%clk 0:02:40.1]} 12... Nd7
{[%clk 0:02:52.8]} 13. Be3 {[%clk 0:02:38.7]} 13... Nc5 {[%clk 0:02:52.9]} 14.
Qc2 {[%clk 0:02:39.3]} 14... Ne6 {[%clk 0:02:53.1]} 15. Nxe6 {[%clk 0:02:34.9]}
15... fxe6 {[%clk 0:02:53.4]} 16. Qb3 {[%clk 0:02:35]} 16... Qd7 {[%clk
0:02:51.5]} 17. a4 {[%clk 0:02:34.8]} 17... Rac8 {[%clk 0:02:42.7]} 18. f3
{[%clk 0:02:28.3]} 18... Kh8 {[%clk 0:02:30.6]} 19. Rfd1 {[%clk 0:02:19.3]}
19... Qe8 {[%clk 0:02:30.5]} 20. Qc2 {[%clk 0:02:10.9]} 20... b5 {[%clk
0:02:22]} 21. axb5 {[%clk 0:01:59.6]} 21... axb5 {[%clk 0:02:22.3]} 22. c5
{[%clk 0:01:57.9]} 22... b4 {[%clk 0:02:07.5]} 23. Ne2 {[%clk 0:01:57.6]} 23...
Bb5 {[%clk 0:02:02.6]} 24. Rac1 {[%clk 0:01:47]} 24... Ba4 {[%clk 0:01:35.4]}
25. b3 {[%clk 0:01:45.2]} 25... Bb5 {[%clk 0:01:35.7]} 26. Qd2 {[%clk
0:01:35.6]} 26... d5 {[%clk 0:01:27.1]} 27. Bd4 {[%clk 0:01:21.5]} 27... e5
{[%clk 0:01:14.3]} 28. Bf2 {[%clk 0:01:20.1]} 28... d4 {[%clk 0:01:12.7]} 29.
Ng3 {[%clk 0:01:13.6]} 29... Qc6 {[%clk 0:01:08.5]} 30. Qxb4 {[%clk 0:01:09.8]}
30... Rb8 {[%clk 0:01:08.4]} 31. Qa3 {[%clk 0:01:07.5]} 31... Ra8 {[%clk
0:01:04.3]} 32. Qb2 {[%clk 0:01:05.8]} 32... Rfb8 {[%clk 0:01:03.3]} 33. Qc2
{[%clk 0:00:54.3]} 33... Ra6 {[%clk 0:00:58.7]} 34. Ra1 {[%clk 0:00:52.7]} 34...
Rba8 {[%clk 0:00:57.8]} 35. Rxa6 {[%clk 0:00:51]} 35... Rxa6 {[%clk 0:00:57.9]}
36. Nf1 {[%clk 0:00:40]} 36... Bh6 {[%clk 0:00:50.3]} 37. Bg3 {[%clk 0:00:34.7]}
37... Qe6 {[%clk 0:00:43.6]} 38. Qb2 {[%clk 0:00:27.1]} 38... Bg7 {[%clk
0:00:34.3]} 39. Rc1 {[%clk 0:00:22.1]} 39... Rc6 {[%clk 0:00:28.2]} 40. Nd2
{[%clk 0:00:20.5]} 40... Qc8 {[%clk 0:00:26.9]} 41. b4 {[%clk 0:00:20.4]} 41...
Qe6 {[%clk 0:00:25.1]} 42. Nb3 {[%clk 0:00:19.5]} 42... Ra6 {[%clk 0:00:24.6]}
43. Na5 {[%clk 0:00:17.4]} 43... h5 {[%clk 0:00:23.2]} 44. Bf2 {[%clk
0:00:16.5]} 44... Bh6 {[%clk 0:00:22.7]} 45. Rd1 {[%clk 0:00:17]} 45... Bf4
{[%clk 0:00:22.2]} 46. Qc2 {[%clk 0:00:16.6]} 46... g5 {[%clk 0:00:21.3]} 47.
Qb2 {[%clk 0:00:09.5]} 47... g4 {[%clk 0:00:20.4]} 48. hxg4 {[%clk 0:00:09.3]}
48... hxg4 {[%clk 0:00:20.8]} 49. fxg4 {[%clk 0:00:08.3]} 49... Qxg4 {[%clk
0:00:20.9]} 50. Qc2 {[%clk 0:00:08.1]} 50... Rg6 {[%clk 0:00:20.7]} 51. g3
{[%clk 0:00:01.2]} 51... Bxg3 {[%clk 0:00:20.1]} 52. Bxg3 {[%clk 0:00:01]} 52...
Qxg3+ {[%clk 0:00:20.4]} 0-1

[Event "Late-Titled-Tuesday-Blitz-April-30-2024"]
[Site "Chess.com"]
[Date "2024.04.30"]
[Round "1"]
[White "Cipy77"]
[Black "PawnEatingZombie"]
[Result "1-0"]
[WhiteElo "2578"]
[BlackElo "2201"]
[TimeControl "180+1"]
[EndTime "14:07:55 PDT"]
[Termination "Cipy77 won on time"]

1. e3 {[%clk 0:03:00.9]} 1... g6 {[%clk 0:02:57.4]} 2. Nf3 {[%clk 0:02:57.1]}
2... Bg7 {[%clk 0:02:57.6]} 3. c4 {[%clk 0:02:56.5]} 3... Nf6 {[%clk 0:02:57.4]}
4. Nc3 {[%clk 0:02:55.5]} 4... O-O {[%clk 0:02:56.4]} 5. b3 {[%clk 0:02:55.8]}
5... d6 {[%clk 0:02:56.9]} 6. Bb2 {[%clk 0:02:56.1]} 6... c5 {[%clk 0:02:56.8]}
7. d3 {[%clk 0:02:54.1]} 7... Nc6 {[%clk 0:02:56.7]} 8. Be2 {[%clk 0:02:54.6]}
8... b6 {[%clk 0:02:54.9]} 9. O-O {[%clk 0:02:54.6]} 9... Bb7 {[%clk 0:02:55.4]}
10. Rc1 {[%clk 0:02:53.2]} 10... e6 {[%clk 0:02:54.3]} 11. Ba1 {[%clk 0:02:51]}
11... Qe7 {[%clk 0:02:54.2]} 12. Ne4 {[%clk 0:02:48.9]} 12... Rfd8 {[%clk
0:02:41.5]} 13. Nxf6+ {[%clk 0:02:47.8]} 13... Bxf6 {[%clk 0:02:40.8]} 14. Bxf6
{[%clk 0:02:48.2]} 14... Qxf6 {[%clk 0:02:41.7]} 15. Qc2 {[%clk 0:02:46.6]}
15... d5 {[%clk 0:02:40.3]} 16. cxd5 {[%clk 0:02:46.2]} 16... Rxd5 {[%clk
0:02:33.6]} 17. Rfd1 {[%clk 0:02:44.5]} 17... Rad8 {[%clk 0:02:31.8]} 18. a3
{[%clk 0:02:44.5]} 18... a5 {[%clk 0:02:23.9]} 19. Nd2 {[%clk 0:02:43.7]} 19...
Ba6 {[%clk 0:01:53]} 20. Ne4 {[%clk 0:02:40.6]} 20... Qe7 {[%clk 0:01:52.9]} 21.
Qb2 {[%clk 0:02:38.6]} 21... e5 {[%clk 0:01:53.2]} 22. Qc2 {[%clk 0:02:28.2]}
22... f5 {[%clk 0:01:47]} 23. Nc3 {[%clk 0:02:27.7]} 23... R5d6 {[%clk
0:01:47.5]} 24. Na4 {[%clk 0:02:04]} 24... Na7 {[%clk 0:01:31]} 25. Nb2 {[%clk
0:01:48.4]} 25... Nc8 {[%clk 0:01:08.9]} 26. Nc4 {[%clk 0:01:47.4]} 26... Bxc4
{[%clk 0:01:02.4]} 27. Qxc4+ {[%clk 0:01:47]} 27... Qe6 {[%clk 0:01:03]} 28. Qc3
{[%clk 0:01:46.7]} 28... Kg7 {[%clk 0:00:52.1]} 29. b4 {[%clk 0:01:45.4]} 29...
cxb4 {[%clk 0:00:47.1]} 30. axb4 {[%clk 0:01:46.3]} 30... Ne7 {[%clk 0:00:39.7]}
31. bxa5 {[%clk 0:01:45.1]} 31... bxa5 {[%clk 0:00:37.1]} 32. Qxa5 {[%clk
0:01:44.9]} 32... Kh6 {[%clk 0:00:32.8]} 33. h3 {[%clk 0:01:28.6]} 33... Nd5
{[%clk 0:00:31.9]} 34. Bf1 {[%clk 0:01:23]} 34... Nf6 {[%clk 0:00:31.4]} 35. Rc5
{[%clk 0:01:20.4]} 35... Rd5 {[%clk 0:00:29]} 36. Rxd5 {[%clk 0:01:20.4]} 36...
Qxd5 {[%clk 0:00:28.8]} 37. Qc7 {[%clk 0:01:17.4]} 37... Qd6 {[%clk 0:00:26.2]}
38. Qc1 {[%clk 0:01:17.1]} 38... Nd5 {[%clk 0:00:25.1]} 39. e4+ {[%clk
0:01:16.2]} 39... Nf4 {[%clk 0:00:25.4]} 40. g3 {[%clk 0:01:16.4]} 40... fxe4
{[%clk 0:00:17.4]} 41. gxf4 {[%clk 0:01:15.4]} 41... exf4 {[%clk 0:00:16.2]} 42.
Qc4 {[%clk 0:00:49.9]} 42... e3 {[%clk 0:00:11.9]} 43. fxe3 {[%clk 0:00:49.1]}
43... fxe3 {[%clk 0:00:10.4]} 44. Qh4+ {[%clk 0:00:44.9]} 44... Kg7 {[%clk
0:00:10.9]} 45. Qg5 {[%clk 0:00:44.6]} 45... Re8 {[%clk 0:00:07.6]} 46. Be2
{[%clk 0:00:43.3]} 46... Qd4 {[%clk 0:00:05]} 47. Rf1 {[%clk 0:00:42.4]} 47...
Re5 {[%clk 0:00:04.4]} 48. Qf6+ {[%clk 0:00:42.1]} 48... Kh6 {[%clk 0:00:05.1]}
49. Qf8+ {[%clk 0:00:37.7]} 49... Kg5 {[%clk 0:00:03.2]} 50. h4+ {[%clk
0:00:34.8]} 50... Kxh4 {[%clk 0:00:02.5]} 51. Qh6+ {[%clk 0:00:25.2]} 51... Rh5
{[%clk 0:00:01.7]} 52. Rf4+ {[%clk 0:00:18.4]} 1-0

[Event "Late-Titled-Tuesday-Blitz-April-30-2024"]
[Site "Chess.com"]
[Date "2024.04.30"]
[Round "1"]
[White "kylelancman"]
[Black "vugarrasulov"]
[Result "1/2-1/2"]
[WhiteElo "2513"]
[BlackElo "2967"]
[TimeControl "180+1"]
[EndTime "14:08:00 PDT"]
[Termination "Game drawn by repetition"]

1. e4 {[%clk 0:03:00.9]} 1... e5 {[%clk 0:02:59.6]} 2. Nf3 {[%clk 0:03:00.6]}
2... Nc6 {[%clk 0:03:00.2]} 3. Nc3 {[%clk 0:02:58.7]} 3... Nf6 {[%clk
0:02:59.9]} 4. a3 {[%clk 0:02:59]} 4... d6 {[%clk 0:02:53.3]} 5. d4 {[%clk
0:02:46.3]} 5... exd4 {[%clk 0:02:54.2]} 6. Nxd4 {[%clk 0:02:45.9]} 6... Be7
{[%clk 0:02:54.8]} 7. Bc4 {[%clk 0:02:39.6]} 7... O-O {[%clk 0:02:54.3]} 8. O-O
{[%clk 0:02:35.7]} 8... Re8 {[%clk 0:02:54.2]} 9. f3 {[%clk 0:02:31.9]} 9... Bf8
{[%clk 0:02:52.2]} 10. Be3 {[%clk 0:02:30.7]} 10... a6 {[%clk 0:02:40.1]} 11.
Qd2 {[%clk 0:02:29.4]} 11... Nxd4 {[%clk 0:02:36.1]} 12. Bxd4 {[%clk 0:02:29.1]}
12... Be6 {[%clk 0:02:37]} 13. Bxe6 {[%clk 0:02:26.3]} 13... Rxe6 {[%clk
0:02:37.9]} 14. Rad1 {[%clk 0:02:20.9]} 14... Nd7 {[%clk 0:02:37.1]} 15. Nd5
{[%clk 0:02:17.4]} 15... c6 {[%clk 0:02:33.8]} 16. Nf4 {[%clk 0:02:17]} 16...
Rh6 {[%clk 0:02:32.2]} 17. Be3 {[%clk 0:02:13.7]} 17... Ne5 {[%clk 0:02:30.3]}
18. b3 {[%clk 0:02:07.6]} 18... Qh4 {[%clk 0:02:27.6]} 19. g3 {[%clk 0:02:03.2]}
19... Qd8 {[%clk 0:02:26.5]} 20. Nd3 {[%clk 0:02:01.7]} 20... Re6 {[%clk
0:02:22.4]} 21. Nxe5 {[%clk 0:01:56.4]} 21... Rxe5 {[%clk 0:02:23.3]} 22. Qd3
{[%clk 0:01:51.1]} 22... Re6 {[%clk 0:02:18]} 23. a4 {[%clk 0:01:48.7]} 23... b5
{[%clk 0:02:17.3]} 24. Ra1 {[%clk 0:01:46.7]} 24... Qc8 {[%clk 0:02:05.8]} 25.
Bd4 {[%clk 0:01:41.2]} 25... c5 {[%clk 0:02:04.3]} 26. Bb2 {[%clk 0:01:40.3]}
26... c4 {[%clk 0:02:04.8]} 27. bxc4 {[%clk 0:01:31.4]} 27... bxc4 {[%clk
0:02:04.1]} 28. Qd5 {[%clk 0:01:28.8]} 28... Rb8 {[%clk 0:01:57.5]} 29. Bc3
{[%clk 0:01:24]} 29... Qc7 {[%clk 0:01:58]} 30. Rfb1 {[%clk 0:01:21.6]} 30...
Ree8 {[%clk 0:01:58]} 31. Kg2 {[%clk 0:01:14.5]} 31... h6 {[%clk 0:01:57.5]} 32.
h4 {[%clk 0:01:14.1]} 32... Be7 {[%clk 0:01:51.6]} 33. Ba5 {[%clk 0:01:12.1]}
33... Qa7 {[%clk 0:01:48.5]} 34. Qxc4 {[%clk 0:01:07.6]} 34... Rbc8 {[%clk
0:01:44.1]} 35. Qd3 {[%clk 0:01:06.3]} 35... Qc5 {[%clk 0:01:44.2]} 36. Bb4
{[%clk 0:00:48.5]} 36... Qxc2+ {[%clk 0:01:44.4]} 37. Qxc2 {[%clk 0:00:49.2]}
37... Rxc2+ {[%clk 0:01:44.7]} 38. Kh3 {[%clk 0:00:49.2]} 38... Rec8 {[%clk
0:01:28]} 39. e5 {[%clk 0:00:36.9]} 39... Bf8 {[%clk 0:01:05.9]} 40. Bxd6 {[%clk
0:00:36.2]} 40... Rf2 {[%clk 0:01:01.2]} 41. Bxf8 {[%clk 0:00:31.7]} 41... Kxf8
{[%clk 0:01:02.1]} 42. Kg4 {[%clk 0:00:27.2]} 42... h5+ {[%clk 0:00:57.7]} 43.
Kxh5 {[%clk 0:00:25.7]} 43... Rxf3 {[%clk 0:00:58.2]} 44. Kg4 {[%clk 0:00:24]}
44... Re3 {[%clk 0:00:58.1]} 45. Re1 {[%clk 0:00:22.3]} 45... Rc4+ {[%clk
0:00:55.9]} 46. Kh3 {[%clk 0:00:21.7]} 46... Rxe1 {[%clk 0:00:55.5]} 47. Rxe1
{[%clk 0:00:22.2]} 47... Rxa4 {[%clk 0:00:56]} 48. e6 {[%clk 0:00:22.4]} 48...
f6 {[%clk 0:00:55.9]} 49. e7+ {[%clk 0:00:16.9]} 49... Ke8 {[%clk 0:00:55.8]}
50. Re6 {[%clk 0:00:16.8]} 50... a5 {[%clk 0:00:51.1]} 51. h5 {[%clk 0:00:17]}
51... Ra1 {[%clk 0:00:51.3]} 52. Kg4 {[%clk 0:00:16.3]} 52... Rb1 {[%clk
0:00:44.3]} 53. h6 {[%clk 0:00:15.3]} 53... Rb4+ {[%clk 0:00:39.1]} 54. Kh3
{[%clk 0:00:15.4]} 54... gxh6 {[%clk 0:00:38.2]} 55. Rxf6 {[%clk 0:00:15.8]}
55... h5 {[%clk 0:00:34.8]} 56. Rf5 {[%clk 0:00:15.3]} 56... a4 {[%clk
0:00:31.8]} 57. Rxh5 {[%clk 0:00:15.3]} 57... Kxe7 {[%clk 0:00:32.6]} 58. Ra5
{[%clk 0:00:16.1]} 58... Kd6 {[%clk 0:00:32.9]} 59. g4 {[%clk 0:00:16.4]} 59...
Kc6 {[%clk 0:00:33.4]} 60. g5 {[%clk 0:00:15.6]} 60... Kb6 {[%clk 0:00:34]} 61.
Ra8 {[%clk 0:00:15.9]} 61... Kb7 {[%clk 0:00:33.3]} 62. Ra5 {[%clk 0:00:15.9]}
62... Kb6 {[%clk 0:00:29.4]} 63. Ra8 {[%clk 0:00:15.9]} 63... Kb7 {[%clk
0:00:29.7]} 64. Ra5 {[%clk 0:00:16]} 64... Kb6 {[%clk 0:00:19]} 1/2-1/2

[Event "Late-Titled-Tuesday-Blitz-April-30-2024"]
[Site "Chess.com"]
[Date "2024.04.30"]
[Round "1"]
[White "Alex_Sahakyan2006"]
[Black "Hudijegszid"]
[Result "1-0"]
[WhiteElo "2823"]
[BlackElo "2460"]
[TimeControl "180+1"]
[EndTime "14:08:01 PDT"]
[Termination "Alex_Sahakyan2006 won on time"]

1. e4 {[%clk 0:03:00.1]} 1... c6 {[%clk 0:02:57.7]} 2. d4 {[%clk 0:02:58.3]}
2... d5 {[%clk 0:02:57.9]} 3. Nc3 {[%clk 0:02:59.2]} 3... dxe4 {[%clk
0:02:57.3]} 4. Nxe4 {[%clk 0:03:00.1]} 4... Nf6 {[%clk 0:02:57.2]} 5. Nxf6+
{[%clk 0:03:00.2]} 5... exf6 {[%clk 0:02:57.3]} 6. Bd3 {[%clk 0:03:00.7]} 6...
Qxd4 {[%clk 0:02:56.4]} 7. Ne2 {[%clk 0:02:59.6]} 7... Qb6 {[%clk 0:02:39.4]} 8.
O-O {[%clk 0:02:58.6]} 8... Bc5 {[%clk 0:02:38.6]} 9. Nc3 {[%clk 0:02:55.9]}
9... O-O {[%clk 0:02:37.9]} 10. Na4 {[%clk 0:02:53.4]} 10... Qa5 {[%clk
0:02:27]} 11. Bxh7+ {[%clk 0:02:50.7]} 11... Kxh7 {[%clk 0:02:27.9]} 12. Qh5+
{[%clk 0:02:50.9]} 12... Kg8 {[%clk 0:02:28.2]} 13. Nxc5 {[%clk 0:02:47.5]}
13... b6 {[%clk 0:02:15]} 14. b4 {[%clk 0:02:44.2]} 14... Qxb4 {[%clk
0:02:12.6]} 15. Nd3 {[%clk 0:02:39]} 15... Qg4 {[%clk 0:02:12.3]} 16. Qxg4
{[%clk 0:02:31.1]} 16... Bxg4 {[%clk 0:02:13.2]} 17. Re1 {[%clk 0:02:31.8]}
17... Nd7 {[%clk 0:02:10]} 18. Be3 {[%clk 0:02:28]} 18... Rfe8 {[%clk
0:02:06.8]} 19. a4 {[%clk 0:02:24.9]} 19... Bf5 {[%clk 0:01:57.2]} 20. Nb4
{[%clk 0:02:24.8]} 20... c5 {[%clk 0:01:54.7]} 21. Nd5 {[%clk 0:02:25.1]} 21...
Rac8 {[%clk 0:01:44]} 22. Bf4 {[%clk 0:02:14]} 22... Ne5 {[%clk 0:01:37.6]} 23.
Rac1 {[%clk 0:01:48.9]} 23... Rcd8 {[%clk 0:01:22.4]} 24. Nc7 {[%clk 0:01:41.6]}
24... Re7 {[%clk 0:01:20.6]} 25. Nb5 {[%clk 0:01:42.2]} 25... a6 {[%clk
0:00:39.6]} 26. Nc3 {[%clk 0:01:42.5]} 26... Rd4 {[%clk 0:00:38.9]} 27. Be3
{[%clk 0:01:42]} 27... Rc4 {[%clk 0:00:34.3]} 28. Nd5 {[%clk 0:01:42.2]} 28...
Rb7 {[%clk 0:00:34.7]} 29. Rb1 {[%clk 0:01:18.9]} 29... Bxc2 {[%clk 0:00:32.6]}
30. Rxb6 {[%clk 0:01:19]} 30... Rxb6 {[%clk 0:00:32.3]} 31. Nxb6 {[%clk
0:01:19.9]} 31... Rb4 {[%clk 0:00:32]} 32. Bxc5 {[%clk 0:01:19.6]} 32... Rb2
{[%clk 0:00:30.7]} 33. Bd4 {[%clk 0:01:15.5]} 33... Ra2 {[%clk 0:00:29.9]} 34.
Re2 {[%clk 0:01:04.1]} 34... Nc6 {[%clk 0:00:19.5]} 35. Bc3 {[%clk 0:01:04.3]}
35... Bb3 {[%clk 0:00:19.3]} 36. Rxa2 {[%clk 0:01:04.4]} 36... Bxa2 {[%clk
0:00:20.2]} 37. f4 {[%clk 0:01:02.3]} 37... Bb3 {[%clk 0:00:17.3]} 38. Kf2
{[%clk 0:01:01.2]} 38... Kf8 {[%clk 0:00:15.9]} 39. Nd7+ {[%clk 0:00:55.9]}
39... Ke7 {[%clk 0:00:15.3]} 40. Nc5 {[%clk 0:00:56.8]} 40... Bc2 {[%clk
0:00:14.7]} 41. a5 {[%clk 0:00:56.5]} 41... Nb8 {[%clk 0:00:11.3]} 42. Bb4
{[%clk 0:00:55.2]} 42... Kd8 {[%clk 0:00:09.5]} 43. Ke3 {[%clk 0:00:53.5]} 43...
Kc7 {[%clk 0:00:09.9]} 44. Kd2 {[%clk 0:00:46.3]} 44... Bf5 {[%clk 0:00:09.9]}
45. h3 {[%clk 0:00:45.1]} 45... Kc6 {[%clk 0:00:09.8]} 46. g4 {[%clk 0:00:45.6]}
46... Bc8 {[%clk 0:00:09.4]} 47. Nb3 {[%clk 0:00:40.4]} 47... Kb5 {[%clk
0:00:10]} 48. Bf8 {[%clk 0:00:40.7]} 48... Nc6 {[%clk 0:00:09.4]} 49. Bxg7
{[%clk 0:00:38.9]} 49... Nxa5 {[%clk 0:00:09.4]} 50. Nd4+ {[%clk 0:00:38.5]}
50... Kc4 {[%clk 0:00:09.6]} 51. Bxf6 {[%clk 0:00:39.4]} 51... Nb3+ {[%clk
0:00:08.8]} 52. Nxb3 {[%clk 0:00:39.9]} 52... Kxb3 {[%clk 0:00:09.7]} 53. f5
{[%clk 0:00:39.4]} 53... Bb7 {[%clk 0:00:07.1]} 54. Ke3 {[%clk 0:00:33.4]} 54...
Kc4 {[%clk 0:00:07]} 55. h4 {[%clk 0:00:33]} 55... Bg2 {[%clk 0:00:03.3]} 56. h5
{[%clk 0:00:33.1]} 56... Bh3 {[%clk 0:00:03.3]} 57. Kf3 {[%clk 0:00:33]} 57...
Bf1 {[%clk 0:00:02.3]} 58. h6 {[%clk 0:00:33.2]} 1-0